fUSD/lending_fUSD_20241104
["ID","MTS","AMOUNT","RATE_DAILY","PERIOD"]
[341221432,1730682642213,-2000.0,0.00038164,2]
[341221433,1730682642222,-2000.0,0.00038164,2]
[341221434,1730682642231,-500.0,0.00038172,2]
[341221435,1730682642241,-500.0,0.00038172,2]
[341221436,1730682642251,-800.24,0.00038172,2]
[341221437,1730682642260,-500.0,0.00038172,2]
[341221438,1730682642270,-500.0,0.00038172,2]
[341221439,1730682642279,-537.94,0.00038172,2]
[341221440,1730682642288,-151.0,0.00038173,7]
[341221441,1730682642298,-151.0,0.00038173,7]
[341221442,1730682642307,-151.0,0.00038173,7]
[341221443,1730682642316,-500.0,0.00038173,2]
[341221444,1730682642326,-500.0,0.00038173,2]
[341221445,1730682642335,-11099.28,0.00038173,2]
[341221446,1730682642344,-596.03,0.00038173,2]
[341221447,1730682642354,-957.75,0.00038173,2]
[341221448,1730682642364,-500.0,0.00038173,2]
[341221449,1730682642374,-273.208163,0.00038273,7]
[341221450,1730682642383,-151.0,0.00038273,7]
[341221451,1730682642392,-203.962536,0.00038273,7]
[341221452,1730682642401,-500.0,0.00038273,2]
[341221453,1730682642412,-500.0,0.00038273,2]
[341221454,1730682642422,-500.0,0.00038273,2]
[341221455,1730682642433,-151.0,0.00038273,7]
[341221456,1730682642442,-851.64298,0.00038273,7]
[341221457,1730682642451,-151.0,0.00038273,7]
[341221458,1730682642462,-851.64298,0.00038273,7]
[341221459,1730682642471,-150.0,0.000383,38]
[341221460,1730682642480,-317.12474048,0.000383,2]
[341221461,1730682642490,-159.0,0.00038356,5]
[341221462,1730682642499,-151.0,0.00038356,7]
[341221463,1730682642507,-273.208163,0.00038356,7]
[341221464,1730682642518,-151.0,0.00038356,7]
[341221465,1730682642528,-151.0,0.00038356,7]
[341221466,1730682642538,-851.64298,0.00038356,7]
[341221467,1730682642548,-851.64298,0.00038356,7]
[341221468,1730682642560,-500.0,0.00038356,2]
[341221469,1730682642569,-500.0,0.00038356,2]
[341221470,1730682642578,-81990.25,0.00038356,2]
[341221471,1730682642587,-8538.61,0.00038356,2]
[341221472,1730682642596,-154.870911,0.00038358,14]
[341221473,1730682642605,-1280.5480985,0.00038358,2]
[341221474,1730682642614,-6476.0483099,0.00038358,2]
[341221475,1730682642623,-273.208163,0.00038364,14]
[341221476,1730682642632,-151.0,0.00038364,14]
[341221477,1730682642644,-1073.5482843,0.00038364,2]
[341221478,1730682642653,-866.5484701,0.00038364,2]
[341221479,1730682642663,-659.5486559,0.00038364,2]
[341221480,1730682642671,-452.5488417,0.00038364,2]
[341221481,1730682642682,-245.5490275,0.00038364,2]
[341221482,1730682642691,-151.0,0.00038364,14]
[341221483,1730682642700,-5429.1990753,0.00038364,2]
[341221484,1730682642711,-4382.3498407,0.00038364,2]
[341221485,1730682642720,-3335.5006061,0.00038364,2]
[341221486,1730682642729,-2288.6513714,0.00038364,2]
[341221487,1730682642739,-1241.8021368,0.00038364,2]
[341221488,1730682642748,-851.64298,0.00038364,14]
[341221489,1730682642758,-851.64298,0.00038364,14]
[341221490,1730682642766,-61305.24301807,0.00038384,3]
[341221491,1730682642775,-273.208163,0.00038384,14]
[341221492,1730682642784,-151.0,0.00038384,14]
[341221493,1730682642793,-151.0,0.00038384,14]
[341221494,1730682642802,-851.64298,0.00038384,14]
[341221495,1730682642811,-851.64298,0.00038384,14]
[341221496,1730682642821,-20260.5760546,0.0003839,2]
[341221497,1730682642830,-158.525,0.0003839,120]
[341221498,1730682642838,-500.0,0.00038399,2]
[341221499,1730682642847,-1000000.0,0.000384,120]
[341221500,1730682642856,-1000000.0,0.000384,120]
[341221501,1730682642865,-603512.52598313,0.000384,120]
[341221502,1730682642991,-334262.67117581,0.000384,120]
[341221503,1730682643005,-2439.14814662,0.000384,120]
[341221504,1730682643016,-6395.68634861,0.000384,120]
[341221505,1730682643027,-5167.65780175,0.000384,120]
[341221506,1730682643037,-4478.44625082,0.000384,120]
[341221507,1730682643048,-5570.57399307,0.000384,120]
[341221510,1730682643705,-4720.74530425,0.000384,120]
[341221511,1730682643717,-666.41,0.000384,120]
[341221512,1730682643771,-25335.22861808,0.000384,120]
[341221513,1730682643782,-1012.97035628,0.000384,120]
[341221514,1730682643836,-2898.01821941,0.000384,120]
[341221515,1730682643847,-2359.1282828,0.000384,120]
[341221516,1730682643904,-1180.78951937,0.000384,120]
[341221517,1730682643914,-1780.54917204,0.000384,120]
[341221518,1730682643925,-331.40167,0.000384,120]
[341221519,1730682643970,-1795.66259684,0.000384,120]
[341221520,1730682644039,-1039.9999,0.000384,120]
[341221521,1730682644050,-1448.63415379,0.000384,120]
[341221522,1730682644061,-2971.4261541,0.000384,120]
[341221523,1730682644072,-28583.70368989,0.000384,120]
[341221524,1730682644083,-642.36310053,0.000384,120]
[341221525,1730682644094,-4011.29080858,0.000384,120]
[341221526,1730682644106,-4650.0,0.000384,120]
[341221527,1730682644117,-680.06549859,0.000384,120]
[341221528,1730682644128,-1507.29,0.000384,120]
[341221529,1730682644188,-444.49150523,0.000384,120]
[341221532,1730682645612,-206.1050687,0.00036897,2]
[341221534,1730682645622,-151.0,0.00037899,7]
[341221535,1730682645632,-32.61062434,0.00037899,7]
[341221536,1730682645674,-118.38937566,0.00037899,7]
[341221537,1730682645684,-151.0,0.000379,7]
[341221538,1730682645691,-168209.53863759,0.000384,120]
[341221539,1730682645702,-1583.93695145,0.000384,120]
[341221540,1730682645741,-253.36831012,0.000384,120]
[341221541,1730682645753,-407.37144464,0.000384,120]
[341221542,1730682645936,-1131.90187909,0.000384,120]
[341221543,1730682645949,-1144.25759762,0.000384,120]
[341221544,1730682645961,-599.38775637,0.000384,120]
[341221545,1730682645974,-297.62688158,0.000384,120]
[341221546,1730682645986,-4730.44525244,0.000384,120]
[341221547,1730682645997,-1523.78274965,0.000384,120]
[341221548,1730682646009,-508.5,0.000384,120]
[341221549,1730682646020,-4490.70199594,0.000384,120]
[341221550,1730682646032,-332.78,0.000384,120]
[341221557,1730683181934,156.85,0.00015342,2]
[341221558,1730683508357,2767667.89168203,0.00016,2]
[341221559,1730683530656,19878.69211128,0.000101,2]
[341221560,1730683536081,150.23256609,0.0001,2]
[341221561,1730683537834,150.0,9e-05,2]
[341221567,1730683557033,1656.39801379,6.94e-05,2]
[341221570,1730683593298,450.0,0.00015,2]
[341221571,1730683618484,2551.31568657,0.000145,2]
[341221579,1730683682559,2194.8208022,0.0001,2]
[341221580,1730683685837,104905.1791978,0.00015,2]
[341221581,1730683685858,5332228.27050765,0.00015,2]
[341221582,1730683704106,400.0,0.000135,2]
[341221583,1730683715555,150.0,0.000129,2]
[341221584,1730683727574,212.2871037,0.00013,2]
[341221614,1730683832066,-490.97832549,0.0001892,2]
[341221615,1730683832076,-2365.48985923,0.00023922,2]
[341221616,1730683832086,-1952.34300889,0.00023999,2]
[341221617,1730683832096,-165.34639648,0.000272,2]
[341221618,1730683832105,-380.0,0.000273,2]
[341221619,1730683832115,-291.806,0.0003,2]
[341221620,1730683832125,-291.806,0.0003,2]
[341221621,1730683832134,-1320.0,0.00032,60]
[341221622,1730683832143,-766.07487983,0.00035,2]
[341221623,1730683832152,-514.29,0.00035011,2]
[341221624,1730683832162,-250.0,0.00036502,2]
[341221625,1730683832171,-150.0,0.00036698,7]
[341221626,1730683832181,-793.05,0.00036808,2]
[341221627,1730683832191,-150.0,0.000369,2]
[341221628,1730683832201,-1939.63,0.00036908,2]
[341221629,1730683832211,-120.4692678,0.0003695,2]
[341221630,1730683832223,-108.2007322,0.0003695,2]
[341221631,1730683832234,-1000.0,0.0003695,2]
[341221632,1730683832243,-1024.0,0.00037,2]
[341221633,1730683832253,-500.0,0.00037,2]
[341221634,1730683832265,-159.39,0.00037128,2]
[341221635,1730683832276,-386.855,0.00037128,47]
[341221636,1730683832285,-500.0,0.00037235,2]
[341221637,1730683832295,-500.0,0.00037235,2]
[341221638,1730683832305,-500.0,0.00037235,2]
[341221639,1730683832314,-500.0,0.00037235,2]
[341221640,1730683832324,-500.0,0.00037235,2]
[341221641,1730683832333,-500.0,0.00037235,2]
[341221642,1730683832343,-500.0,0.00037235,2]
[341221643,1730683832352,-500.0,0.00037235,2]
[341221644,1730683832362,-500.0,0.00037235,2]
[341221645,1730683832371,-500.0,0.00037235,2]
[341221646,1730683832380,-500.0,0.00037235,2]
[341221647,1730683832389,-500.0,0.00037235,2]
[341221648,1730683832399,-500.0,0.00037235,2]
[341221649,1730683832408,-500.0,0.00037235,2]
[341221650,1730683832417,-500.0,0.00037235,2]
[341221651,1730683832427,-500.0,0.00037235,2]
[341221652,1730683832436,-500.0,0.00037235,2]
[341221653,1730683832446,-500.0,0.00037235,2]
[341221654,1730683832455,-500.0,0.00037235,2]
[341221655,1730683832464,-500.0,0.00037235,2]
[341221656,1730683832474,-500.0,0.00037235,2]
[341221657,1730683832483,-500.0,0.00037235,2]
[341221658,1730683832492,-500.0,0.00037235,2]
[341221659,1730683832502,-500.0,0.00037235,2]
[341221660,1730683832511,-500.0,0.00037235,2]
[341221661,1730683832521,-500.0,0.00037235,2]
[341221662,1730683832530,-500.0,0.00037235,2]
[341221663,1730683832540,-500.0,0.00037235,2]
[341221664,1730683832550,-500.0,0.00037235,2]
[341221665,1730683832559,-500.0,0.00037235,2]
[341221666,1730683832569,-500.0,0.00037235,2]
[341221667,1730683832579,-500.0,0.00037235,2]
[341221668,1730683832589,-500.0,0.00037235,2]
[341221669,1730683832598,-500.0,0.00037235,2]
[341221670,1730683832608,-500.0,0.00037235,2]
[341221671,1730683832617,-500.0,0.00037235,2]
[341221672,1730683832628,-500.0,0.00037235,2]
[341221673,1730683832637,-500.0,0.00037235,2]
[341221674,1730683832647,-500.0,0.00037235,2]
[341221675,1730683832656,-500.0,0.00037235,2]
[341221676,1730683832666,-500.0,0.00037235,2]
[341221677,1730683832676,-500.0,0.00037235,2]
[341221678,1730683832686,-500.0,0.00037235,2]
[341221679,1730683832695,-500.0,0.00037235,2]
[341221680,1730683832704,-500.0,0.00037235,2]
[341221681,1730683832714,-500.0,0.00037235,2]
[341221682,1730683832724,-500.0,0.00037235,2]
[341221683,1730683832733,-500.0,0.00037235,2]
[341221684,1730683832743,-500.0,0.00037235,2]
[341221685,1730683832755,-500.0,0.00037235,2]
[341221686,1730683832787,-500.0,0.00037235,2]
[341221687,1730683832796,-500.0,0.00037235,2]
[341221688,1730683832806,-500.0,0.00037235,2]
[341221689,1730683832815,-500.0,0.00037235,2]
[341221690,1730683832824,-500.0,0.00037235,2]
[341221691,1730683832833,-500.0,0.00037235,2]
[341221692,1730683832842,-500.0,0.00037235,2]
[341221693,1730683832851,-500.0,0.00037235,2]
[341221694,1730683832860,-500.0,0.00037235,2]
[341221695,1730683832873,-500.0,0.00037235,2]
[341221696,1730683832885,-500.0,0.00037235,2]
[341221697,1730683832895,-500.0,0.00037235,2]
[341221698,1730683832904,-500.0,0.00037235,2]
[341221699,1730683832913,-500.0,0.00037235,2]
[341221700,1730683832922,-500.0,0.00037235,2]
[341221701,1730683832931,-500.0,0.00037235,2]
[341221702,1730683832940,-500.0,0.00037235,2]
[341221703,1730683832950,-500.0,0.00037235,2]
[341221704,1730683832959,-500.0,0.00037235,2]
[341221705,1730683832968,-514.29,0.00037275,2]
[341221706,1730683832977,-1039.78318005,0.00037632,5]
[341221707,1730683832986,-1130.25239605,0.00037632,5]
[341221708,1730683832996,-6246.06013819,0.0003768,2]
[341221709,1730683833005,-12990.0268,0.00037799,2]
[341221710,1730683833015,-722.8,0.00037808,2]
[341221711,1730683833025,-431.88,0.00037808,2]
[341221712,1730683833035,-6183.11848097,0.00038,3]
[341221713,1730683833045,-1028.0000336,0.00038,2]
[341221714,1730683833055,-608.50951097,0.00038215,30]
[341221715,1730683833064,-227.36491806,0.00038298,15]
[341221750,1730683840090,-92.82600087,0.00038298,15]
[341221751,1730683840099,-587.07399913,0.00038299,2]
[341221752,1730683840235,-488.73500087,0.00038299,2]
[341221753,1730683840246,-246.4804378,0.00038299,15]
[341221754,1730683840255,-839.55869369,0.000383,2]
[341221755,1730683840270,-536.92830003,0.000383,2]
[341221756,1730683840281,-570.05744516,0.000383,2]
[341221757,1730683840299,-493.085,0.000383,2]
[341221758,1730683840386,-257.07870836,0.000383,2]
[341221767,1730683843061,-270.99030835,0.00035761,7]
[341221768,1730683843071,-5136.09425276,0.000383,2]
[341221769,1730683843081,-638.05485537,0.000383,2]
[341221770,1730683843090,-69643.1872,0.000383,2]
[341221771,1730683843099,-1335.905,0.000383,2]
[341221772,1730683843110,-630.7171,0.000383,2]
[341221773,1730683843119,-154.45694251,0.00038351,2]
[341221774,1730683843129,-500.0,0.00038399,2]
[341221775,1730683843139,-500.0,0.00038399,2]
[341221776,1730683843149,-500.0,0.00038399,2]
[341221777,1730683843159,-500.0,0.00038399,2]
[341221778,1730683843169,-500.0,0.00038399,2]
[341221779,1730683843178,-500.0,0.00038399,2]
[341221780,1730683843188,-10174.34,0.00038399,2]
[341221781,1730683843197,-500.0,0.00038399,2]
[341221782,1730683843206,-555.48,0.00038399,2]
[341221783,1730683843216,-500.0,0.00038399,2]
[341221784,1730683843225,-545.74124313,0.00038399,2]
[341221785,1730683843236,-733.55,0.00038399,2]
[341221786,1730683843245,-925.83,0.00038399,2]
[341221787,1730683843255,-500.0,0.00038399,2]
[341221788,1730683843268,-500.0,0.00038399,2]
[341221789,1730683843277,-520.01,0.00038399,2]
[341221790,1730683843287,-482.14,0.00038399,2]
[341221791,1730683843302,-309.06378868,0.00038399,2]
[341221792,1730683843313,-565.21327841,0.00038399,2]
[341221793,1730683843323,-208.57168001,0.00038399,2]
[341221794,1730683843333,-640.84820882,0.00038399,2]
[341221795,1730683843343,-491.42090779,0.00038399,2]
[341221796,1730683843353,-535.06976056,0.00038399,2]
[341221797,1730683843362,-518.0944105,0.00038399,2]
[341221798,1730683843372,-500.0,0.00038399,2]
[341221799,1730683843381,-159.0,0.000384,5]
[341221800,1730683843391,-1160.35604519,0.000384,6]
[341221801,1730683843400,-123746.04112633,0.000384,120]
[341221802,1730683843503,-5842.39993405,0.000384,120]
[341221803,1730683843514,-68882.08641354,0.000384,120]
[341221804,1730683843526,-4587.06963335,0.000384,120]
[341221810,1730684167596,164.32,0.00015342,2]
[341221867,1730684947855,156.71,0.00015342,2]
[341221887,1730685032242,-515.769176,0.0002,2]
[341221888,1730685032255,-2519.95441177,0.0002,2]
[341221889,1730685032268,-1344.27641223,0.0002,2]
[341221890,1730685032279,-250.0,0.00021,2]
[341221891,1730685032290,-628.18,0.00034727,2]
[341221892,1730685032302,-213.05,0.00035792,2]
[341221893,1730685032313,-161.38,0.00036579,120]
[341221894,1730685032323,-8272.7013125,0.00036579,2]
[341221895,1730685032334,-20469.56,0.0003659,2]
[341221896,1730685032344,-150.0,0.00036591,7]
[341221897,1730685032354,-250.0,0.00036612,2]
[341221898,1730685032366,-23900.0,0.00036658,2]
[341221899,1730685032376,-355.46,0.0003669,2]
[341221900,1730685032385,-1000.0,0.00036741,2]
[341221901,1730685032396,-628.18,0.00036991,2]
[341221902,1730685032407,-162.95,0.00037,2]
[341221903,1730685032417,-2064.42,0.0003715,2]
[341221904,1730685032427,-2064.42,0.0003717,2]
[341221905,1730685032437,-323.96,0.0003717,47]
[341221906,1730685032447,-2064.42,0.0003719,2]
[341221907,1730685032458,-218.03337281,0.000372,103]
[341221908,1730685032468,-2064.42,0.00037209,2]
[341221909,1730685032478,-2064.42,0.00037229,2]
[341221910,1730685032488,-2064.42,0.00037248,2]
[341221911,1730685032498,-177.8,0.00037262,2]
[341221912,1730685032508,-2064.42,0.00037268,2]
[341221913,1730685032518,-2064.42,0.00037287,2]
[341221914,1730685032528,-2064.42,0.00037307,2]
[341221915,1730685032538,-2064.42,0.00037326,2]
[341221916,1730685032548,-2064.42,0.00037346,2]
[341221917,1730685032559,-2064.42,0.00037366,2]
[341221918,1730685032570,-2064.42,0.00037385,2]
[341221919,1730685032581,-2064.42,0.00037405,2]
[341221920,1730685032593,-2064.42,0.00037424,2]
[341221921,1730685032603,-2064.42,0.00037444,2]
[341221922,1730685032613,-2064.42,0.00037463,2]
[341221923,1730685032623,-2064.42,0.00037483,2]
[341221924,1730685032634,-2064.42,0.00037502,2]
[341221925,1730685032645,-2064.42,0.00037522,2]
[341221926,1730685032657,-1120.43266842,0.00037534,5]
[341221927,1730685032667,-291.74988103,0.00037576,7]
[341221928,1730685032678,-678.82874581,0.00037824,2]
[341221929,1730685032689,-152.0,0.00038,120]
[341221930,1730685032704,-26969.29619241,0.000381,120]
[341221931,1730685032718,-1080.0732,0.000382,2]
[341221932,1730685032729,-941.9693,0.00038208,2]
[341221933,1730685032741,-1392.2584,0.00038299,2]
[341221934,1730685032756,-4721.4703,0.00038299,2]
[341221935,1730685032766,-836.9972,0.000383,2]
[341221936,1730685032950,-510.6151,0.000383,2]
[341221937,1730685032968,-493.085,0.000383,2]
[341221938,1730685032979,-352.49801137,0.000383,15]
[341221939,1730685032989,-637.25121957,0.000383,2]
[341221940,1730685032999,-282.88,0.00038356,2]
[341221941,1730685033008,-170.52939836,0.00038398,2]
[341221942,1730685033018,-172.53630646,0.00038399,15]
[341221943,1730685033027,-1883.13096159,0.00038399,30]
[341221944,1730685033036,-150.42073382,0.00038399,2]
[341221945,1730685033046,-500.0,0.00038399,2]
[341221946,1730685033055,-158.96724764,0.00038399,2]
[341221947,1730685033065,-207.49053044,0.00038399,2]
[341221948,1730685033074,-163.87122837,0.00038399,2]
[341221949,1730685033084,-155.95790284,0.00038399,2]
[341221950,1730685033093,-2000.0,0.00038399,60]
[341221951,1730685033103,-500.0,0.00038399,2]
[341221952,1730685033112,-530.244115,0.00038399,2]
[341221953,1730685033127,-531.44265948,0.00038399,2]
[341221954,1730685033136,-512.9831877,0.00038399,2]
[341221955,1730685033146,-208.67634173,0.00038399,2]
[341221956,1730685033155,-327.49870246,0.00038399,2]
[341221957,1730685033164,-150.83462361,0.00038399,2]
[341221958,1730685033174,-199.40062242,0.00038399,2]
[341221959,1730685033183,-157.81287466,0.00038399,2]
[341221960,1730685033193,-357.97233062,0.00038399,2]
[341221961,1730685033202,-500.0,0.00038399,2]
[341221962,1730685033212,-389.11838423,0.00038399,2]
[341221963,1730685033221,-9783.03,0.00038399,2]
[341221964,1730685033231,-500.0,0.00038399,2]
[341221965,1730685033240,-229.08351375,0.00038399,2]
[341221966,1730685033249,-290.96781979,0.00038399,2]
[341221967,1730685033259,-540.61,0.00038399,2]
[341221968,1730685033268,-167.09819766,0.00038399,2]
[341221969,1730685033278,-585.04137062,0.00038399,2]
[341221970,1730685033287,-156.38479483,0.00038399,2]
[341221971,1730685033299,-500.0,0.00038399,2]
[341221972,1730685033309,-431.1316,0.00038399,2]
[341221973,1730685033318,-500.0,0.00038399,2]
[341221974,1730685033328,-204.29250397,0.00038399,2]
[341221975,1730685033339,-925.94,0.00038399,2]
[341221976,1730685033348,-705.48,0.00038399,2]
[341221977,1730685033358,-536.25344019,0.00038399,2]
[341221978,1730685033367,-500.0,0.00038399,2]
[341221979,1730685033383,-153.29816612,0.00038399,2]
[341221980,1730685033392,-196.05932708,0.00038399,2]
[341221981,1730685033401,-500.0,0.00038399,2]
[341221982,1730685033411,-500.0,0.00038399,2]
[341221983,1730685033420,-162.6695822,0.00038399,2]
[341221984,1730685033429,-282.14907745,0.00038399,2]
[341221985,1730685033439,-204.06125217,0.00038399,2]
[341221986,1730685033448,-572.72,0.00038399,2]
[341221987,1730685033458,-3405.95940925,0.000384,3]
[341221988,1730685033467,-348993.37948811,0.000384,3]
[341221989,1730685033477,-40199.84878753,0.000384,120]
[341221990,1730685033490,-1294.47295566,0.000384,120]
[341221991,1730685033501,-572.13348406,0.000384,120]
[341221992,1730685033512,-424.89604998,0.000384,120]
[341221993,1730685033523,-915.6071618,0.000384,120]
[341221994,1730685033534,-983.94936565,0.000384,120]
[341221995,1730685033546,-1132.78,0.000384,120]
[341221996,1730685033556,-16682.07307111,0.000384,120]
[341221997,1730685033568,-137529.99999998,0.000384,120]
[341221998,1730685033579,-2772.87586463,0.000384,120]
[341221999,1730685033593,-42470.11613556,0.000384,120]
[341222000,1730685033604,-377.73911008,0.000384,120]
[341222001,1730685033615,-1174.91676973,0.000384,120]
[341222002,1730685033629,-3545.9078755,0.000384,120]
[341222003,1730685033641,-13968.17353022,0.000384,120]
[341222004,1730685033660,-166498.61428439,0.000384,120]
[341222005,1730685033671,-75521.9999997,0.000384,120]
[341222006,1730685038096,-507.08496524,0.00038264,2]
[341222008,1730685038106,-292.91503476,0.00038399,2]
[341222010,1730685038270,-207.08496524,0.00038399,2]
[341222011,1730685038280,-862.89745561,0.000384,120]
[341222012,1730685038291,-344.304,0.000384,120]
[341222013,1730685038303,-424.69899163,0.000384,120]
[341222014,1730685038315,-54143.92029383,0.000384,120]
[341222015,1730685038325,-6007.84215564,0.000384,33]
[341222016,1730685038334,-684951.83154636,0.000384,120]
[341222017,1730685038344,-470.22,0.000384,14]
[341222018,1730685038353,-1566.07270053,0.000384,2]
[341222019,1730685038362,-253.0,0.000384,120]
[341222020,1730685038373,-214.49289263,0.000384,2]
[341222021,1730685038382,-2000.0,0.00038673,60]
[341222022,1730685038391,-500.0,0.00038673,2]
[341222023,1730685038401,-9783.03,0.00038673,2]
[341222024,1730685038410,-500.0,0.00038673,2]
[341222025,1730685038420,-540.61,0.00038673,2]
[341222026,1730685038430,-452.89623641,0.00038673,2]
[341222027,1730685038440,-500.0,0.00038673,2]
[341222028,1730685038449,-925.94,0.00038673,2]
[341222029,1730685038458,-705.48,0.00038673,2]
[341222030,1730685038468,-500.0,0.00038673,2]
[341222031,1730685038477,-500.0,0.00038673,2]
[341222032,1730685038486,-500.0,0.00038673,2]
[341222033,1730685038495,-572.72,0.00038673,2]
[341222034,1730685038505,-500.0,0.00038673,2]
[341222035,1730685038514,-637.25121946,0.00038716,2]
[341222036,1730685038523,-760.04,0.00038767,2]
[341222037,1730685038532,-853.14,0.00038767,2]
[341222038,1730685038542,-488.86,0.000388,7]
[341222039,1730685038551,-352.4980113,0.00038921,15]
[341222040,1730685038560,-2000.0,0.00038947,60]
[341222041,1730685038570,-500.0,0.00038947,2]
[341222042,1730685038579,-9783.03,0.00038947,2]
[341222043,1730685038588,-500.0,0.00038947,2]
[341222044,1730685038598,-540.61,0.00038947,2]
[341222045,1730685038607,-500.0,0.00038947,2]
[341222046,1730685038616,-925.94,0.00038947,2]
[341222047,1730685038627,-705.48,0.00038947,2]
[341222048,1730685038637,-243.45383759,0.00038947,2]
[341222049,1730685038646,-500.0,0.00038947,2]
[341222050,1730685038655,-500.0,0.00038947,2]
[341222051,1730685038665,-572.72,0.00038947,2]
[341222052,1730685038675,-500.0,0.00038947,2]
[341222053,1730685038684,-583.0,0.00038986,120]
[341222054,1730685038694,-178876.63563718,0.00039,15]
[341222071,1730685040364,-388.08,0.00038161,2]
[341222072,1730685040378,-150.01,0.00038398,2]
[341222073,1730685040387,-677.78354357,0.00039,15]
[341222110,1730685043432,-18702.84990442,0.00039,15]
[341222122,1730685046342,-2007.71876745,0.00037,7]
[341222123,1730685046513,-1111.13756184,0.00037,7]
[341222124,1730685046523,-1273.63639966,0.00039,15]
[341222125,1730685106844,1199.0,0.000237,120]
[341222126,1730685345375,200.0,0.000237,120]
[341222230,1730686232294,-271.98807484,0.00018107,2]
[341222231,1730686232305,-161.33943251,0.000252,2]
[341222232,1730686232315,-1487.0,0.000253,2]
[341222233,1730686232325,-1211.076613,0.00032088,2]
[341222234,1730686232334,-3192.28830261,0.0003225,2]
[341222235,1730686232344,-17205.00728074,0.0003235,2]
[341222236,1730686232354,-2398.36997024,0.00032413,2]
[341222237,1730686232365,-793.91833236,0.00032413,2]
[341222238,1730686232376,-161.58273486,0.00032877,2]
[341222239,1730686232386,-651.32,0.00033,2]
[341222240,1730686232397,-455.086,0.00033284,2]
[341222241,1730686232406,-423.021,0.00033284,2]
[341222242,1730686232415,-954.271,0.00033284,2]
[341222243,1730686232424,-1058.51037941,0.00033284,2]
[341222252,1730686238261,-851.72962059,0.00033284,2]
[341222253,1730686238271,-194.20896342,0.00034849,120]
[341222254,1730686238284,-667.31,0.00034965,2]
[341222255,1730686238293,-176.64,0.00035644,2]
[341222256,1730686238303,-259.168,0.00036265,44]
[341222257,1730686238312,-150.0,0.00036633,7]
[341222258,1730686238321,-250.0,0.00036692,2]
[341222259,1730686238331,-350.39,0.0003671,2]
[341222260,1730686238340,-300.0,0.00036862,2]
[341222261,1730686238350,-3736.14882616,0.00036864,2]
[341222262,1730686238611,-18558.64117384,0.00036864,2]
[341222263,1730686238620,-172.0,0.000372,2]
[341222264,1730686238629,-667.31,0.00037229,2]
[341222265,1730686238639,-1000.0,0.00037321,2]
[341222266,1730686238648,-267.0,0.00037463,2]
[341222267,1730686238657,-164.82,0.00037478,2]
[341222268,1730686238666,-247.23,0.00037478,2]
[341222269,1730686238675,-171.84,0.00037693,2]
[341222270,1730686238684,-160.08,0.00038082,2]
[341222271,1730686238693,-160.08,0.00038114,2]
[341222272,1730686238702,-160.08,0.00038145,2]
[341222273,1730686238711,-160.08,0.00038177,2]
[341222274,1730686238720,-160.08,0.00038209,2]
[341222275,1730686238729,-160.08,0.00038241,2]
[341222276,1730686238738,-160.08,0.00038272,2]
[341222277,1730686238747,-1333.5335,0.000383,2]
[341222278,1730686238756,-1000.0,0.000383,2]
[341222279,1730686238765,-160.08,0.00038304,2]
[341222280,1730686238774,-160.08,0.00038336,2]
[341222281,1730686238783,-347.85,0.00038356,2]
[341222282,1730686238792,-3500.20136985,0.00038367,4]
[341222283,1730686238801,-160.08,0.00038367,2]